[Event "Titled Tuesday Blitz January 17 Late 2023"]
[White "Forgacs, Attila Jr."]
[Black "Fiorito, Joaquin"]
[WhiteFideId "773654"]
[BlackFideId "180173"]
[WhiteElo "2264"]
[BlackElo "2405"]
[Result "0-1"]
[Round "07"]
[TimeControl "180+2"]
[Date "2023.01.17"]
[WhiteClock "0:00:07"]
[BlackClock "0:00:53"]

1. e4 {[%clk 0:03:00]}  c6 {[%clk 0:03:00]} 2. d4 {[%clk 0:02:59]}  d5 {[%clk 0:03:00]} 3. Nd2 {[%clk 0:02:59]}  dxe4 {[%clk 0:03:00]} 4. Nxe4 {[%clk 0:03:00]}  Bf5 {[%clk 0:03:01]} 5. Ng3 {[%clk 0:03:00]}  Bg6 {[%clk 0:03:01]} 6. h4 {[%clk 0:03:01]}  h6 {[%clk 0:03:02]} 7. Nf3 {[%clk 0:03:01]}  Nd7 {[%clk 0:03:01]} 8. h5 {[%clk 0:03:02]}  Bh7 {[%clk 0:03:01]} 9. Bd3 {[%clk 0:03:03]}  Bxd3 {[%clk 0:03:02]} 10. Qxd3 {[%clk 0:03:04]}  Ngf6 {[%clk 0:03:03]} 11. Bd2 {[%clk 0:03:03]}  e6 {[%clk 0:03:03]} 12. O-O-O {[%clk 0:03:04]}  Be7 {[%clk 0:03:04]} 13. Kb1 {[%clk 0:03:01]}  O-O {[%clk 0:03:04]} 14. Ne4 {[%clk 0:03:02]}  c5 {[%clk 0:03:04]} 15. Nxf6+ {[%clk 0:02:59]}  Nxf6 {[%clk 0:03:04]} 16. g4 {[%clk 0:02:59]}  Nxg4 {[%clk 0:03:02]} 17. Qe2 {[%clk 0:02:54]}  Qb6 {[%clk 0:02:53]} 18. Rdg1 {[%clk 0:02:45]}  f5 {[%clk 0:02:53]} 19. Ne5 {[%clk 0:02:31]}  Nxe5 {[%clk 0:02:37]} 20. dxe5 {[%clk 0:02:09]}  f4 {[%clk 0:02:25]} 21. Qe4 {[%clk 0:01:56]}  Bg5 {[%clk 0:02:12]} 22. Qg6 {[%clk 0:01:30]}  Qc6 {[%clk 0:02:07]} 23. f3 {[%clk 0:01:18]}  Rf5 {[%clk 0:01:58]} 24. Be1 {[%clk 0:00:56]}  Qe8 {[%clk 0:01:52]} 25. Qxe8+ {[%clk 0:00:29]}  Rxe8 {[%clk 0:01:50]} 26. Bc3 {[%clk 0:00:30]}  Rd8 {[%clk 0:01:44]} 27. Rd1 {[%clk 0:00:29]}  Rff8 {[%clk 0:01:42]} 28. Rd6 {[%clk 0:00:19]}  Rxd6 {[%clk 0:01:41]} 29. exd6 {[%clk 0:00:20]}  Rd8 {[%clk 0:01:38]} 30. Be5 {[%clk 0:00:20]}  b6 {[%clk 0:01:36]} 31. Rd1 {[%clk 0:00:20]}  Kf7 {[%clk 0:01:37]} 32. c3 {[%clk 0:00:14]}  Bf6 {[%clk 0:01:30]} 33. Bxf4 {[%clk 0:00:13]}  e5 {[%clk 0:01:30]} 34. Bg3 {[%clk 0:00:10]}  Ke6 {[%clk 0:01:31]} 35. f4 {[%clk 0:00:06]}  Rxd6 {[%clk 0:01:28]} 36. f5+ {[%clk 0:00:06]}  Ke7 {[%clk 0:01:26]} 37. Rxd6 {[%clk 0:00:06]}  Kxd6 {[%clk 0:01:27]} 38. Kc2 {[%clk 0:00:06]}  Kd5 {[%clk 0:01:27]} 39. Kd3 {[%clk 0:00:07]}  e4+ {[%clk 0:01:27]} 40. Ke3 {[%clk 0:00:07]}  Bg5+ {[%clk 0:01:27]} 41. Bf4 {[%clk 0:00:06]}  Bxf4+ {[%clk 0:00:54]} 42. Kxf4 {[%clk 0:00:07]}  c4 {[%clk 0:00:55]} 43. b3 {[%clk 0:00:06]}  cxb3 {[%clk 0:00:55]} 44. axb3 {[%clk 0:00:07]}  b5 {[%clk 0:00:56]} 45. c4+ {[%clk 0:00:04]}  bxc4 {[%clk 0:00:56]} 46. bxc4+ {[%clk 0:00:05]}  Kxc4 {[%clk 0:00:56]} 47. Kxe4 {[%clk 0:00:06]}  a5 {[%clk 0:00:57]} 48. Ke5 {[%clk 0:00:04]}  a4 {[%clk 0:00:57]} 49. Ke6 {[%clk 0:00:05]}  a3 {[%clk 0:00:57]} 50. Kf7 {[%clk 0:00:06]}  a2 {[%clk 0:00:57]} 51. Kxg7 {[%clk 0:00:07]}  a1=Q+ {[%clk 0:00:57]} 52. f6 {[%clk 0:00:08]}  Kd5 {[%clk 0:00:58]} 53. Kg8 {[%clk 0:00:06]}  Qxf6 {[%clk 0:00:51]} 54. Kh7 {[%clk 0:00:06]}  Qg5 {[%clk 0:00:51]} 55. Kh8 {[%clk 0:00:06]}  Ke6 {[%clk 0:00:52]} 56. Kh7 {[%clk 0:00:06]}  Kf7 {[%clk 0:00:52]} 57. Kh8 {[%clk 0:00:07]}  Qg7# {[%clk 0:00:53]} 0-1


[Site "https://www.chess.com"]

[Event "Titled Tuesday Blitz January 17 Late 2023"]
[White "Berezin, Viktor"]
[Black "Balague Camps, Marc"]
[WhiteFideId "14107872"]
[BlackFideId "2297914"]
[WhiteElo "2307"]
[BlackElo "2190"]
[Result "0-1"]
[Round "07"]
[TimeControl "180+2"]
[Date "2023.01.17"]
[WhiteClock "0:00:01"]
[BlackClock "0:01:17"]

1. d4 {[%clk 0:03:00]}  Nf6 {[%clk 0:02:59]} 2. c4 {[%clk 0:03:00]}  c5 {[%clk 0:02:59]} 3. d5 {[%clk 0:03:00]}  e5 {[%clk 0:02:59]} 4. Nc3 {[%clk 0:02:57]}  d6 {[%clk 0:02:59]} 5. e4 {[%clk 0:02:58]}  g6 {[%clk 0:02:59]} 6. g3 {[%clk 0:02:57]}  Bg7 {[%clk 0:03:00]} 7. Bg2 {[%clk 0:02:58]}  O-O {[%clk 0:03:00]} 8. Nge2 {[%clk 0:02:59]}  a6 {[%clk 0:03:00]} 9. O-O {[%clk 0:02:59]}  Ne8 {[%clk 0:02:55]} 10. f4 {[%clk 0:02:57]}  exf4 {[%clk 0:02:55]} 11. Bxf4 {[%clk 0:02:54]}  Nd7 {[%clk 0:02:53]} 12. Rc1 {[%clk 0:02:49]}  h6 {[%clk 0:02:51]} 13. h3 {[%clk 0:02:41]}  Kh7 {[%clk 0:02:51]} 14. Kh2 {[%clk 0:02:40]}  Qe7 {[%clk 0:02:52]} 15. Qd2 {[%clk 0:02:33]}  Ne5 {[%clk 0:02:52]} 16. b3 {[%clk 0:02:32]}  Bd7 {[%clk 0:02:50]} 17. Rce1 {[%clk 0:02:30]}  b5 {[%clk 0:02:49]} 18. Bxe5 {[%clk 0:02:14]}  Bxe5 {[%clk 0:02:47]} 19. Nf4 {[%clk 0:02:13]}  Qg5 {[%clk 0:02:42]} 20. h4 {[%clk 0:01:44]}  Qe7 {[%clk 0:02:41]} 21. Kh1 {[%clk 0:01:37]}  Ra7 {[%clk 0:02:39]} 22. h5 {[%clk 0:01:29]}  Ng7 {[%clk 0:02:36]} 23. hxg6+ {[%clk 0:01:22]}  fxg6 {[%clk 0:02:37]} 24. Nce2 {[%clk 0:01:14]}  Bg4 {[%clk 0:02:21]} 25. Ng1 {[%clk 0:00:55]}  Qg5 {[%clk 0:02:19]} 26. Nf3 {[%clk 0:00:46]}  Bxf3 {[%clk 0:02:18]} 27. Rxf3 {[%clk 0:00:47]}  Raf7 {[%clk 0:02:17]} 28. Ref1 {[%clk 0:00:46]}  b4 {[%clk 0:02:15]} 29. Qe3 {[%clk 0:00:39]}  Qg4 {[%clk 0:02:14]} 30. Qf2 {[%clk 0:00:33]}  Bd4 {[%clk 0:02:11]} 31. Qd2 {[%clk 0:00:30]}  Nh5 {[%clk 0:02:11]} 32. Qd3 {[%clk 0:00:21]}  Rxf4 {[%clk 0:01:57]} 33. gxf4 {[%clk 0:00:17]}  Rxf4 {[%clk 0:01:50]} 34. Rxf4 {[%clk 0:00:15]}  Ng3+ {[%clk 0:01:49]} 35. Kh2 {[%clk 0:00:14]}  Nxf1+ {[%clk 0:01:46]} 36. Qxf1 {[%clk 0:00:08]}  Be5 {[%clk 0:01:45]} 37. Bh3 {[%clk 0:00:05]}  Bxf4+ {[%clk 0:01:45]} 38. Kh1 {[%clk 0:00:05]}  Qg3 {[%clk 0:01:45]} 39. Qg2 {[%clk 0:00:04]}  Qe1+ {[%clk 0:01:45]} 40. Qf1 {[%clk 0:00:05]}  Qxe4+ {[%clk 0:01:45]} 41. Bg2 {[%clk 0:00:05]}  Qe3 {[%clk 0:01:45]} 42. Qf3 {[%clk 0:00:05]}  Qe5 {[%clk 0:01:43]} 43. Qg4 {[%clk 0:00:04]}  h5 {[%clk 0:01:39]} 44. Qd7+ {[%clk 0:00:04]}  Kh6 {[%clk 0:01:40]} 45. Qc8 {[%clk 0:00:04]}  Be3 {[%clk 0:01:40]} 46. Qf8+ {[%clk 0:00:04]}  Kg5 {[%clk 0:01:39]} 47. Qd8+ {[%clk 0:00:04]}  Kf4 {[%clk 0:01:37]} 48. Qf8+ {[%clk 0:00:03]}  Kg5 {[%clk 0:01:35]} 49. Qd8+ {[%clk 0:00:04]}  Kh6 {[%clk 0:01:34]} 50. Qf8+ {[%clk 0:00:04]}  Kh7 {[%clk 0:01:23]} 51. Qf7+ {[%clk 0:00:04]}  Qg7 {[%clk 0:01:23]} 52. Qe6 {[%clk 0:00:04]}  Qa1+ {[%clk 0:01:22]} 53. Kh2 {[%clk 0:00:04]}  Bf4+ {[%clk 0:01:17]} 54. Kh3 {[%clk 0:00:03]}  Qc3+ {[%clk 0:01:17]} 55. Kh4 {[%clk 0:00:01]}  Qg3# {[%clk 0:01:17]} 0-1


[Site "https://www.chess.com"]

[Event "Titled Tuesday Blitz January 17 Late 2023"]
[White "reevecanada"]
[Black "Slavin, Alexey"]
[BlackFideId "24104388"]
[WhiteElo "2474"]
[BlackElo "2364"]
[Result "1-0"]
[Round "07"]
[TimeControl "180+2"]
[Date "2023.01.17"]
[WhiteClock "0:00:25"]
[BlackClock "0:00:09"]

1. e4 {[%clk 0:03:00]}  Nc6 {[%clk 0:02:59]} 2. d4 {[%clk 0:02:59]}  d6 {[%clk 0:02:59]} 3. d5 {[%clk 0:02:59]}  Ne5 {[%clk 0:02:59]} 4. f4 {[%clk 0:02:59]}  Nd7 {[%clk 0:02:59]} 5. Nf3 {[%clk 0:02:58]}  c6 {[%clk 0:02:57]} 6. c4 {[%clk 0:02:56]}  Qc7 {[%clk 0:02:57]} 7. Nc3 {[%clk 0:02:57]}  Ngf6 {[%clk 0:02:55]} 8. Be3 {[%clk 0:02:56]}  g6 {[%clk 0:02:56]} 9. h3 {[%clk 0:02:56]}  Bg7 {[%clk 0:02:56]} 10. Be2 {[%clk 0:02:56]}  O-O {[%clk 0:02:55]} 11. g4 {[%clk 0:02:55]}  cxd5 {[%clk 0:02:49]} 12. cxd5 {[%clk 0:02:54]}  a6 {[%clk 0:02:48]} 13. O-O {[%clk 0:02:52]}  b5 {[%clk 0:02:46]} 14. a3 {[%clk 0:02:51]}  Nc5 {[%clk 0:02:45]} 15. Bd3 {[%clk 0:02:49]}  Nxd3 {[%clk 0:02:44]} 16. Qxd3 {[%clk 0:02:47]}  Bb7 {[%clk 0:02:32]} 17. Rac1 {[%clk 0:02:45]}  Qd7 {[%clk 0:02:26]} 18. Rfd1 {[%clk 0:02:38]}  Rfc8 {[%clk 0:02:24]} 19. e5 {[%clk 0:02:32]}  dxe5 {[%clk 0:02:20]} 20. fxe5 {[%clk 0:02:32]}  Ne8 {[%clk 0:02:13]} 21. Bf4 {[%clk 0:02:30]}  Rc4 {[%clk 0:02:06]} 22. Qe3 {[%clk 0:02:27]}  Rac8 {[%clk 0:02:00]} 23. Ng5 {[%clk 0:02:26]}  Qc7 {[%clk 0:01:53]} 24. Nxf7 {[%clk 0:01:57]}  Qc5 {[%clk 0:01:32]} 25. Nh6+ {[%clk 0:01:52]}  Kh8 {[%clk 0:01:17]} 26. d6 {[%clk 0:01:43]}  Qc6 {[%clk 0:01:06]} 27. Qg3 {[%clk 0:01:19]}  Rxf4 {[%clk 0:00:59]} 28. Nd5 {[%clk 0:01:03]}  Qxc1 {[%clk 0:00:47]} 29. Rxc1 {[%clk 0:01:02]}  Rxc1+ {[%clk 0:00:47]} 30. Kh2 {[%clk 0:01:01]}  Bxh6 {[%clk 0:00:46]} 31. d7 {[%clk 0:00:56]}  Rc2+ {[%clk 0:00:41]} 32. Kg1 {[%clk 0:00:47]}  Rc1+ {[%clk 0:00:38]} 33. Kh2 {[%clk 0:00:45]}  Rc2+ {[%clk 0:00:32]} 34. Qg2 {[%clk 0:00:28]}  Rxg2+ {[%clk 0:00:27]} 35. Kxg2 {[%clk 0:00:29]}  Bxd5+ {[%clk 0:00:27]} 36. Kg1 {[%clk 0:00:28]}  Bc6 {[%clk 0:00:20]} 37. d8=Q {[%clk 0:00:27]}  Re4 {[%clk 0:00:14]} 38. Qxe7 {[%clk 0:00:26]}  Be3+ {[%clk 0:00:13]} 39. Kf1 {[%clk 0:00:26]}  Bb6 {[%clk 0:00:09]} 40. Qf8# {[%clk 0:00:25]} 1-0


[Site "https://www.chess.com"]

[Event "Titled Tuesday Blitz January 17 Late 2023"]
[White "Hajiyev, Kanan"]
[Black "Ardila, Oscar Humberto"]
[WhiteFideId "13404148"]
[BlackFideId "4404742"]
[WhiteElo "2197"]
[BlackElo "1982"]
[Result "1-0"]
[Round "07"]
[TimeControl "180+2"]
[Date "2023.01.17"]
[WhiteClock "0:00:21"]
[BlackClock "0:00:15"]

1. d4 {[%clk 0:02:46]}  Nf6 {[%clk 0:02:59]} 2. Nf3 {[%clk 0:02:44]}  g6 {[%clk 0:02:56]} 3. c4 {[%clk 0:02:44]}  Bg7 {[%clk 0:02:51]} 4. Nc3 {[%clk 0:02:45]}  d6 {[%clk 0:02:50]} 5. g3 {[%clk 0:02:44]}  O-O {[%clk 0:02:50]} 6. Bg2 {[%clk 0:02:45]}  Nbd7 {[%clk 0:02:50]} 7. O-O {[%clk 0:02:46]}  c6 {[%clk 0:02:50]} 8. e4 {[%clk 0:02:45]}  Qc7 {[%clk 0:02:50]} 9. b3 {[%clk 0:02:44]}  e5 {[%clk 0:02:50]} 10. Ba3 {[%clk 0:02:44]}  c5 {[%clk 0:02:43]} 11. dxe5 {[%clk 0:02:36]}  Nxe5 {[%clk 0:02:27]} 12. Nb5 {[%clk 0:02:30]}  Qc6 {[%clk 0:02:12]} 13. Qxd6 {[%clk 0:02:12]}  Qxd6 {[%clk 0:01:18]} 14. Nxd6 {[%clk 0:02:11]}  Nd3 {[%clk 0:01:00]} 15. Rad1 {[%clk 0:01:47]}  Nb4 {[%clk 0:01:00]} 16. e5 {[%clk 0:01:33]}  Ne8 {[%clk 0:00:48]} 17. Bxb4 {[%clk 0:01:06]}  cxb4 {[%clk 0:00:47]} 18. Nxc8 {[%clk 0:01:06]}  Rxc8 {[%clk 0:00:47]} 19. Rfe1 {[%clk 0:01:05]}  Nc7 {[%clk 0:00:38]} 20. Ng5 {[%clk 0:01:00]}  b6 {[%clk 0:00:33]} 21. Rd7 {[%clk 0:00:54]}  h6 {[%clk 0:00:30]} 22. Nh3 {[%clk 0:00:45]}  Ne6 {[%clk 0:00:28]} 23. Nf4 {[%clk 0:00:36]}  Rc7 {[%clk 0:00:20]} 24. Rxc7 {[%clk 0:00:34]}  Nxc7 {[%clk 0:00:20]} 25. Bd5 {[%clk 0:00:31]}  g5 {[%clk 0:00:18]} 26. Nh5 {[%clk 0:00:30]}  Re8 {[%clk 0:00:18]} 27. f4 {[%clk 0:00:26]}  gxf4 {[%clk 0:00:17]} 28. gxf4 {[%clk 0:00:27]}  Kf8 {[%clk 0:00:16]} 29. Kg2 {[%clk 0:00:23]}  Nxd5 {[%clk 0:00:16]} 30. cxd5 {[%clk 0:00:23]}  f6 {[%clk 0:00:15]} 31. Nxg7 {[%clk 0:00:19]}  Kxg7 {[%clk 0:00:14]} 32. exf6+ {[%clk 0:00:20]}  Kf7 {[%clk 0:00:14]} 33. Rxe8 {[%clk 0:00:19]}  Kxe8 {[%clk 0:00:14]} 34. d6 {[%clk 0:00:20]}  Kf7 {[%clk 0:00:15]} 35. d7 {[%clk 0:00:20]}  Kxf6 {[%clk 0:00:15]} 36. d8=Q+ {[%clk 0:00:21]} 1-0


[Site "https://www.chess.com"]

[Event "Titled Tuesday Blitz January 17 Late 2023"]
[White "ritanovikova"]
[Black "Chernomordik, Pavel"]
[BlackFideId "2804530"]
[WhiteElo "2148"]
[BlackElo "2150"]
[Result "0-1"]
[Round "07"]
[TimeControl "180+2"]
[Date "2023.01.17"]
[WhiteClock "0:00:03"]
[BlackClock "0:01:00"]

1. d4 {[%clk 0:02:46]}  g6 {[%clk 0:02:59]} 2. Bf4 {[%clk 0:02:45]}  Bg7 {[%clk 0:02:59]} 3. c3 {[%clk 0:02:45]}  d6 {[%clk 0:02:59]} 4. Nf3 {[%clk 0:02:44]}  Nd7 {[%clk 0:02:59]} 5. Nbd2 {[%clk 0:02:44]}  e5 {[%clk 0:02:59]} 6. Bg3 {[%clk 0:02:42]}  Qe7 {[%clk 0:02:56]} 7. dxe5 {[%clk 0:02:40]}  Nxe5 {[%clk 0:02:55]} 8. Nxe5 {[%clk 0:02:40]}  dxe5 {[%clk 0:02:54]} 9. e4 {[%clk 0:02:39]}  Nf6 {[%clk 0:02:49]} 10. Be2 {[%clk 0:02:28]}  O-O {[%clk 0:02:43]} 11. O-O {[%clk 0:02:27]}  Rd8 {[%clk 0:02:39]} 12. Qc2 {[%clk 0:02:22]}  c6 {[%clk 0:02:26]} 13. h3 {[%clk 0:02:19]}  h5 {[%clk 0:02:17]} 14. Nf3 {[%clk 0:02:18]}  Nh7 {[%clk 0:02:11]} 15. Rad1 {[%clk 0:02:10]}  f6 {[%clk 0:02:10]} 16. Bc4+ {[%clk 0:02:05]}  Be6 {[%clk 0:02:07]} 17. Qb3 {[%clk 0:02:00]}  Bxc4 {[%clk 0:02:04]} 18. Qxc4+ {[%clk 0:01:59]}  Qf7 {[%clk 0:02:04]} 19. Qa4 {[%clk 0:01:27]}  Nf8 {[%clk 0:01:58]} 20. Rxd8 {[%clk 0:01:25]}  Rxd8 {[%clk 0:01:58]} 21. Qxa7 {[%clk 0:01:25]}  Ne6 {[%clk 0:01:56]} 22. a4 {[%clk 0:01:19]}  Bf8 {[%clk 0:01:55]} 23. b4 {[%clk 0:01:17]}  Rd7 {[%clk 0:01:49]} 24. Qe3 {[%clk 0:01:08]}  Nc7 {[%clk 0:01:44]} 25. Qe2 {[%clk 0:01:06]}  Qb3 {[%clk 0:01:42]} 26. Rc1 {[%clk 0:00:43]}  Bh6 {[%clk 0:01:40]} 27. Qc2 {[%clk 0:00:32]}  Qc4 {[%clk 0:01:30]} 28. Re1 {[%clk 0:00:25]}  Ne6 {[%clk 0:01:25]} 29. Bh4 {[%clk 0:00:21]}  Kf7 {[%clk 0:01:23]} 30. Bg3 {[%clk 0:00:20]}  Rd3 {[%clk 0:01:18]} 31. Qe2 {[%clk 0:00:12]}  Qxc3 {[%clk 0:01:15]} 32. b5 {[%clk 0:00:11]}  c5 {[%clk 0:01:13]} 33. Qa2 {[%clk 0:00:09]}  Qb3 {[%clk 0:01:10]} 34. Qxb3 {[%clk 0:00:09]}  Rxb3 {[%clk 0:01:09]} 35. Ra1 {[%clk 0:00:09]}  c4 {[%clk 0:01:05]} 36. Kf1 {[%clk 0:00:09]}  Rb2 {[%clk 0:01:03]} 37. Ke1 {[%clk 0:00:08]}  c3 {[%clk 0:01:02]} 38. Ng1 {[%clk 0:00:02]}  c2 {[%clk 0:01:00]} 39. Ne2 {[%clk 0:00:03]}  Rb1+ {[%clk 0:01:00]} 0-1


[Site "https://www.chess.com"]

[Event "Titled Tuesday Blitz January 17 Late 2023"]
[White "Gerbelli Neto, Eduardo"]
[Black "Artemenko, Oleg"]
[WhiteFideId "2103281"]
[BlackFideId "14201798"]
[WhiteElo "2114"]
[BlackElo "2246"]
[Result "1-0"]
[Round "07"]
[TimeControl "180+2"]
[Date "2023.01.17"]
[WhiteClock "0:00:06"]
[BlackClock "0:00:02"]

1. e4 {[%clk 0:03:00]}  c5 {[%clk 0:02:59]} 2. Nc3 {[%clk 0:02:58]}  Nc6 {[%clk 0:02:59]} 3. f4 {[%clk 0:02:58]}  a6 {[%clk 0:02:59]} 4. g3 {[%clk 0:02:57]}  b5 {[%clk 0:02:59]} 5. Bg2 {[%clk 0:02:58]}  Bb7 {[%clk 0:03:00]} 6. d3 {[%clk 0:02:58]}  e6 {[%clk 0:03:00]} 7. Qe2 {[%clk 0:02:58]}  Nd4 {[%clk 0:02:59]} 8. Qf2 {[%clk 0:02:59]}  Nf6 {[%clk 0:02:58]} 9. h3 {[%clk 0:02:59]}  d5 {[%clk 0:02:48]} 10. Nf3 {[%clk 0:02:25]}  Nd7 {[%clk 0:02:43]} 11. exd5 {[%clk 0:02:08]}  exd5 {[%clk 0:02:39]} 12. O-O {[%clk 0:02:06]}  Be7 {[%clk 0:02:38]} 13. Nxd4 {[%clk 0:01:52]}  cxd4 {[%clk 0:02:38]} 14. Nxd5 {[%clk 0:01:51]}  Bxd5 {[%clk 0:02:31]} 15. Bxd5 {[%clk 0:01:52]}  Rb8 {[%clk 0:02:24]} 16. f5 {[%clk 0:01:40]}  O-O {[%clk 0:02:24]} 17. Bf4 {[%clk 0:01:38]}  Rb6 {[%clk 0:02:23]} 18. Rae1 {[%clk 0:01:23]}  Nf6 {[%clk 0:02:15]} 19. Bf3 {[%clk 0:01:20]}  Qd7 {[%clk 0:01:33]} 20. g4 {[%clk 0:01:14]}  Rc8 {[%clk 0:00:43]} 21. g5 {[%clk 0:01:07]}  Ne8 {[%clk 0:00:38]} 22. Re2 {[%clk 0:01:07]}  Bd6 {[%clk 0:00:35]} 23. Bg4 {[%clk 0:01:05]}  f6 {[%clk 0:00:29]} 24. Rfe1 {[%clk 0:00:36]}  Rbc6 {[%clk 0:00:14]} 25. Qf3 {[%clk 0:00:16]}  Bxf4 {[%clk 0:00:09]} 26. Qxf4 {[%clk 0:00:14]}  Rxc2 {[%clk 0:00:06]} 27. gxf6 {[%clk 0:00:14]}  Nxf6 {[%clk 0:00:05]} 28. Re7 {[%clk 0:00:07]}  Qc6 {[%clk 0:00:03]} 29. Bf3 {[%clk 0:00:07]}  Qc5 {[%clk 0:00:02]} 30. Qg3 {[%clk 0:00:06]}  Rc1 {[%clk 0:00:02]} 31. Qxg7# {[%clk 0:00:06]} 1-0


[Site "https://www.chess.com"]

[Event "Titled Tuesday Blitz January 17 Late 2023"]
[White "Pein, Jonathan"]
[Black "Quinones Garcia, Santiago"]
[WhiteFideId "417092"]
[BlackFideId "4408497"]
[WhiteElo "2265"]
[BlackElo "2248"]
[Result "1-0"]
[Round "07"]
[TimeControl "180+2"]
[Date "2023.01.17"]
[WhiteClock "0:01:19"]
[BlackClock "0:01:16"]

1. e4 {[%clk 0:03:00]}  e5 {[%clk 0:02:59]} 2. Nf3 {[%clk 0:02:56]}  Nc6 {[%clk 0:02:59]} 3. Nc3 {[%clk 0:02:55]}  Nf6 {[%clk 0:02:58]} 4. d4 {[%clk 0:02:55]}  exd4 {[%clk 0:02:58]} 5. Nd5 {[%clk 0:02:55]}  Be7 {[%clk 0:02:35]} 6. Bf4 {[%clk 0:02:55]}  d6 {[%clk 0:02:34]} 7. Nxd4 {[%clk 0:02:54]}  O-O {[%clk 0:02:32]} 8. Nb5 {[%clk 0:02:45]}  Ne8 {[%clk 0:02:31]} 9. Qd2 {[%clk 0:02:34]}  a6 {[%clk 0:02:23]} 10. Nbc3 {[%clk 0:02:34]}  Nf6 {[%clk 0:02:18]} 11. O-O-O {[%clk 0:02:30]}  Re8 {[%clk 0:02:16]} 12. Be2 {[%clk 0:02:23]}  b5 {[%clk 0:02:15]} 13. g4 {[%clk 0:02:18]}  Bb7 {[%clk 0:02:14]} 14. g5 {[%clk 0:02:17]}  Nd7 {[%clk 0:02:14]} 15. h4 {[%clk 0:02:09]}  b4 {[%clk 0:02:11]} 16. Nxe7+ {[%clk 0:02:09]}  Qxe7 {[%clk 0:02:10]} 17. Nd5 {[%clk 0:02:08]}  Qxe4 {[%clk 0:02:08]} 18. Nxc7 {[%clk 0:02:07]}  Nd4 {[%clk 0:02:06]} 19. Bd3 {[%clk 0:02:02]}  Qxh1 {[%clk 0:02:02]} 20. Rxh1 {[%clk 0:02:00]}  Bxh1 {[%clk 0:02:03]} 21. Nxa8 {[%clk 0:02:00]}  Bxa8 {[%clk 0:02:00]} 22. Bxh7+ {[%clk 0:02:00]}  Kxh7 {[%clk 0:01:59]} 23. Qxd4 {[%clk 0:02:01]}  Ne5 {[%clk 0:01:53]} 24. Qxd6 {[%clk 0:01:54]}  Nf3 {[%clk 0:01:47]} 25. b3 {[%clk 0:01:51]}  Be4 {[%clk 0:01:41]} 26. Qxb4 {[%clk 0:01:49]}  Bg6 {[%clk 0:01:37]} 27. Be3 {[%clk 0:01:44]}  Rc8 {[%clk 0:01:31]} 28. c4 {[%clk 0:01:36]}  Ne5 {[%clk 0:01:30]} 29. Qd6 {[%clk 0:01:27]}  Nd3+ {[%clk 0:01:27]} 30. Kd2 {[%clk 0:01:27]}  a5 {[%clk 0:01:26]} 31. h5 {[%clk 0:01:20]}  Bf5 {[%clk 0:01:24]} 32. h6 {[%clk 0:01:20]}  Bg6 {[%clk 0:01:19]} 33. hxg7 {[%clk 0:01:19]}  a4 {[%clk 0:01:16]} 34. Qf8 {[%clk 0:01:19]} 1-0


[Site "https://www.chess.com"]

[Event "Titled Tuesday Blitz January 17 Late 2023"]
[White "Malka, Samuel"]
[Black "Kovacs, Klara"]
[WhiteFideId "20643675"]
[BlackFideId "733210"]
[WhiteElo "2165"]
[BlackElo "2121"]
[Result "0-1"]
[Round "07"]
[TimeControl "180+2"]
[Date "2023.01.17"]
[WhiteClock "0:00:17"]
[BlackClock "0:00:27"]

1. d4 {[%clk 0:03:00]}  e6 {[%clk 0:02:59]} 2. c4 {[%clk 0:03:01]}  Nf6 {[%clk 0:03:00]} 3. Nf3 {[%clk 0:03:01]}  d5 {[%clk 0:03:00]} 4. g3 {[%clk 0:03:01]}  dxc4 {[%clk 0:02:59]} 5. Bg2 {[%clk 0:03:01]}  Bb4+ {[%clk 0:02:59]} 6. Bd2 {[%clk 0:03:01]}  c5 {[%clk 0:02:59]} 7. Bxb4 {[%clk 0:03:00]}  cxb4 {[%clk 0:02:59]} 8. Ne5 {[%clk 0:02:59]}  O-O {[%clk 0:02:58]} 9. O-O {[%clk 0:02:56]}  Nc6 {[%clk 0:02:54]} 10. Nxc6 {[%clk 0:02:40]}  bxc6 {[%clk 0:02:55]} 11. a3 {[%clk 0:02:41]}  Rb8 {[%clk 0:02:47]} 12. axb4 {[%clk 0:02:38]}  Rxb4 {[%clk 0:02:45]} 13. Qd2 {[%clk 0:02:38]}  Qb6 {[%clk 0:02:44]} 14. Ra2 {[%clk 0:02:37]}  Rd8 {[%clk 0:02:41]} 15. e3 {[%clk 0:01:54]}  e5 {[%clk 0:02:39]} 16. Na3 {[%clk 0:01:50]}  exd4 {[%clk 0:02:38]} 17. exd4 {[%clk 0:01:51]}  Rxd4 {[%clk 0:02:35]} 18. Qe3 {[%clk 0:01:34]}  Be6 {[%clk 0:02:32]} 19. Nc2 {[%clk 0:01:28]}  c5 {[%clk 0:02:32]} 20. Nxb4 {[%clk 0:01:16]}  cxb4 {[%clk 0:02:30]} 21. Ra4 {[%clk 0:01:09]}  a5 {[%clk 0:02:24]} 22. Qe5 {[%clk 0:01:09]}  h5 {[%clk 0:01:57]} 23. Rxa5 {[%clk 0:01:08]}  Ng4 {[%clk 0:01:53]} 24. Ra8+ {[%clk 0:01:03]}  Rd8 {[%clk 0:01:51]} 25. Rxd8+ {[%clk 0:00:55]}  Qxd8 {[%clk 0:01:52]} 26. Qxh5 {[%clk 0:00:49]}  Qd4 {[%clk 0:01:50]} 27. h3 {[%clk 0:00:41]}  Nf6 {[%clk 0:01:42]} 28. Qf3 {[%clk 0:00:37]}  Qxb2 {[%clk 0:01:39]} 29. Qa8+ {[%clk 0:00:35]}  Kh7 {[%clk 0:01:37]} 30. g4 {[%clk 0:00:34]}  g6 {[%clk 0:01:32]} 31. g5 {[%clk 0:00:29]}  Nh5 {[%clk 0:01:32]} 32. Bd5 {[%clk 0:00:22]}  Nf4 {[%clk 0:01:21]} 33. Bxe6 {[%clk 0:00:21]}  Nxe6 {[%clk 0:01:20]} 34. h4 {[%clk 0:00:16]}  Qd4 {[%clk 0:01:18]} 35. Qf3 {[%clk 0:00:17]}  Kg7 {[%clk 0:01:14]} 36. Rd1 {[%clk 0:00:17]}  Qxh4 {[%clk 0:01:13]} 37. Rd7 {[%clk 0:00:16]}  Qxg5+ {[%clk 0:01:10]} 38. Kf1 {[%clk 0:00:17]}  Qc1+ {[%clk 0:01:08]} 39. Kg2 {[%clk 0:00:16]}  Ng5 {[%clk 0:01:06]} 40. Qg3 {[%clk 0:00:14]}  Ne4 {[%clk 0:00:35]} 41. Qe5+ {[%clk 0:00:14]}  Nf6 {[%clk 0:00:35]} 42. Rd6 {[%clk 0:00:14]}  Qc3 {[%clk 0:00:29]} 43. Rd4 {[%clk 0:00:07]}  b3 {[%clk 0:00:25]} 44. Qf4 {[%clk 0:00:02]}  b2 {[%clk 0:00:22]} 45. Rxc4 {[%clk 0:00:02]}  Qxc4 {[%clk 0:00:20]} 46. Qxc4 {[%clk 0:00:02]}  b1=Q {[%clk 0:00:20]} 47. Qf4 {[%clk 0:00:03]}  Qb7+ {[%clk 0:00:20]} 48. Kg1 {[%clk 0:00:03]}  Qd5 {[%clk 0:00:20]} 49. Kf1 {[%clk 0:00:03]}  Qd1+ {[%clk 0:00:20]} 50. Kg2 {[%clk 0:00:03]}  Qg4+ {[%clk 0:00:21]} 51. Qxg4 {[%clk 0:00:04]}  Nxg4 {[%clk 0:00:22]} 52. Kg3 {[%clk 0:00:05]}  Nf6 {[%clk 0:00:22]} 53. Kf4 {[%clk 0:00:05]}  Kh6 {[%clk 0:00:22]} 54. Kg3 {[%clk 0:00:06]}  Kh5 {[%clk 0:00:23]} 55. Kf3 {[%clk 0:00:07]}  g5 {[%clk 0:00:23]} 56. Kg3 {[%clk 0:00:08]}  Kg6 {[%clk 0:00:23]} 57. Kf3 {[%clk 0:00:09]}  Nh5 {[%clk 0:00:23]} 58. Kg2 {[%clk 0:00:09]}  f5 {[%clk 0:00:24]} 59. Kf3 {[%clk 0:00:10]}  g4+ {[%clk 0:00:24]} 60. Kg2 {[%clk 0:00:11]}  Kg5 {[%clk 0:00:24]} 61. Kg1 {[%clk 0:00:11]}  Kf4 {[%clk 0:00:25]} 62. Kg2 {[%clk 0:00:12]}  Nf6 {[%clk 0:00:24]} 63. Kf1 {[%clk 0:00:12]}  Kf3 {[%clk 0:00:25]} 64. Kg1 {[%clk 0:00:13]}  Ne4 {[%clk 0:00:26]} 65. Kf1 {[%clk 0:00:13]}  Nxf2 {[%clk 0:00:26]} 66. Kg1 {[%clk 0:00:14]}  g3 {[%clk 0:00:26]} 67. Kf1 {[%clk 0:00:14]}  g2+ {[%clk 0:00:26]} 68. Kg1 {[%clk 0:00:15]}  Nh3+ {[%clk 0:00:26]} 69. Kh2 {[%clk 0:00:16]}  g1=Q+ {[%clk 0:00:27]} 70. Kxh3 {[%clk 0:00:17]}  Qg3# {[%clk 0:00:27]} 0-1


[Site "https://www.chess.com"]